fUSD/lending_fUSD_20240119
["ID","MTS","AMOUNT","RATE_DAILY","PERIOD"]
[312229515,1705696274552,-232.25,0.00025479,2]
[312229516,1705696274561,-500.0,0.00025479,2]
[312229517,1705696274571,-500.0,0.00025479,2]
[312229518,1705696274581,-603.76,0.00025479,2]
[312229519,1705696274590,-293.56,0.00025479,2]
[312229520,1705696274602,-554.83,0.00025479,2]
[312229521,1705696274612,-229.88,0.00025479,2]
[312229522,1705696274621,-500.0,0.00025479,2]
[312229523,1705696274630,-500.0,0.00025479,2]
[312229524,1705696274640,-500.0,0.00025479,2]
[312229525,1705696274649,-505.02561498,0.00025479,2]
[312229526,1705696274658,-182.96,0.00025479,2]
[312229527,1705696274667,-197.16,0.00025479,2]
[312229528,1705696274677,-363.64,0.00025479,2]
[312229529,1705696274686,-500.0,0.00025479,2]
[312229530,1705696274695,-519.83,0.00025479,2]
[312229531,1705696274705,-500.0,0.00025479,2]
[312229532,1705696274714,-232.2999786,0.00025479,2]
[312229533,1705696274723,-500.0,0.00025479,2]
[312229534,1705696274733,-500.0,0.00025479,2]
[312229535,1705696274742,-500.0,0.00025479,2]
[312229536,1705696274752,-424.4,0.00025479,2]
[312229537,1705696274761,-469.55,0.00025479,2]
[312229538,1705696274771,-182.16776741,0.00025479,2]
[312229539,1705696274780,-604.28,0.00025479,2]
[312229540,1705696274790,-340.72,0.00025479,2]
[312229541,1705696274800,-500.0,0.00025479,2]
[312229542,1705696274809,-500.0,0.00025479,2]
[312229543,1705696274819,-500.0,0.00025479,2]
[312229544,1705696274828,-378.57,0.00025479,2]
[312229545,1705696274836,-500.0,0.00025479,2]
[312229546,1705696274849,-628.59,0.00025479,2]
[312229547,1705696274858,-500.0,0.00025479,2]
[312229548,1705696274867,-500.0,0.00025479,2]
[312229549,1705696274877,-649.88,0.00025479,2]
[312229550,1705696274886,-500.0,0.00025479,2]
[312229551,1705696274896,-500.0,0.00025479,2]
[312229552,1705696274905,-542.48,0.00025479,2]
[312229553,1705696274915,-589.97,0.00025479,2]
[312229554,1705696274925,-223.4,0.00025479,2]
[312229555,1705696274935,-500.0,0.00025479,2]
[312229556,1705696274944,-500.0,0.00025479,2]
[312229557,1705696274954,-500.0,0.00025479,2]
[312229558,1705696274964,-500.0,0.00025479,2]
[312229559,1705696274973,-500.0,0.00025479,2]
[312229560,1705696274982,-500.0,0.00025479,2]
[312229561,1705696274993,-516.68,0.00025479,2]
[312229562,1705696275003,-500.0,0.00025479,2]
[312229563,1705696275013,-555.29,0.00025479,2]
[312229564,1705696275022,-744.86,0.00025479,2]
[312229565,1705696275032,-500.0,0.00025479,2]
[312229566,1705696275041,-631.43,0.00025479,2]
[312229567,1705696275050,-500.0,0.00025479,2]
[312229568,1705696275059,-1329.39,0.00025479,2]
[312229569,1705696275068,-500.0,0.00025479,2]
[312229570,1705696275077,-550.39,0.00025479,2]
[312229571,1705696275086,-500.0,0.00025479,2]
[312229572,1705696275097,-537.84,0.00025479,2]
[312229573,1705696275106,-500.0,0.00025479,2]
[312229574,1705696275116,-500.0,0.00025479,2]
[312229575,1705696275131,-500.0,0.00025479,2]
[312229576,1705696275141,-500.0,0.00025479,2]
[312229577,1705696275151,-500.0,0.00025479,2]
[312229578,1705696275161,-500.0,0.00025479,2]
[312229579,1705696275327,-500.0,0.00025479,2]
[312229580,1705696275337,-500.0,0.00025479,2]
[312229581,1705696275349,-500.0,0.00025479,2]
[312229582,1705696275359,-500.0,0.00025479,2]
[312229583,1705696275368,-427.46,0.00025479,2]
[312229584,1705696275377,-500.0,0.00025479,2]
[312229585,1705696275386,-500.0,0.00025479,2]
[312229586,1705696275396,-798.86,0.00025479,2]
[312229587,1705696275405,-500.0,0.00025479,2]
[312229588,1705696275414,-1147.75,0.00025479,2]
[312229589,1705696275423,-725.44,0.00025479,2]
[312229590,1705696275433,-500.0,0.00025479,2]
[312229591,1705696275442,-500.0,0.00025479,2]
[312229592,1705696275451,-723.12,0.00025479,2]
[312229593,1705696275461,-500.0,0.00025479,2]
[312229594,1705696275471,-500.0,0.00025479,2]
[312229595,1705696275481,-500.0,0.00025479,2]
[312229596,1705696275490,-873.87,0.00025479,2]
[312229597,1705696275500,-500.0,0.00025479,2]
[312229598,1705696275509,-500.0,0.00025479,2]
[312229599,1705696275518,-509.37,0.00025479,2]
[312229600,1705696275528,-571.99,0.00025479,2]
[312229601,1705696275538,-500.0,0.00025479,2]
[312229602,1705696275547,-500.0,0.00025479,2]
[312229603,1705696275557,-500.0,0.00025479,2]
[312229604,1705696275566,-1419.83,0.00025479,2]
[312229605,1705696275576,-184.78,0.00025479,2]
[312229606,1705696275585,-927.45,0.00025479,2]
[312229607,1705696275595,-1148.85,0.00025479,2]
[312229608,1705696275604,-500.0,0.00025479,2]
[312229609,1705696275614,-500.0,0.00025479,2]
[312229610,1705696275623,-500.0,0.00025479,2]
[312229611,1705696275633,-910.74,0.00025479,2]
[312229612,1705696275642,-500.0,0.00025479,2]
[312229613,1705696275651,-526.25,0.00025479,2]
[312229614,1705696275661,-514.57,0.00025479,2]
[312229615,1705696275671,-1454.65,0.00025479,2]
[312229616,1705696275681,-631.37,0.00025479,2]
[312229617,1705696275690,-500.0,0.00025479,2]
[312229618,1705696275700,-1401.96,0.00025479,2]
[312229619,1705696275709,-500.0,0.00025479,2]
[312229620,1705696275719,-327.16,0.00025479,2]
[312229621,1705696275729,-1959.51,0.00025479,2]
[312229622,1705696275738,-521.98,0.00025479,2]
[312229623,1705696275748,-500.0,0.00025479,2]
[312229624,1705696275757,-500.0,0.00025479,2]
[312229625,1705696275766,-500.0,0.00025479,2]
[312229626,1705696275775,-2285.19,0.00025479,2]
[312229627,1705696275784,-500.0,0.00025479,2]
[312229628,1705696275794,-582.63,0.00025479,2]
[312229629,1705696275803,-500.0,0.00025479,2]
[312229630,1705696275813,-500.0,0.00025479,2]
[312229631,1705696275822,-1198.85,0.00025479,2]
[312229632,1705696275832,-532.41,0.00025479,2]
[312229633,1705696275843,-500.0,0.00025479,2]
[312229634,1705696275853,-474.66,0.00025479,2]
[312229635,1705696275862,-500.0,0.00025479,2]
[312229636,1705696275872,-285.44,0.00025479,2]
[312229637,1705696275881,-667.98,0.00025479,2]
[312229638,1705696275891,-500.0,0.00025479,2]
[312229639,1705696275899,-500.0,0.00025479,2]
[312229640,1705696275909,-500.0,0.00025479,2]
[312229641,1705696275919,-1258.01,0.00025479,2]
[312229642,1705696275928,-500.0,0.00025479,2]
[312229643,1705696275938,-500.0,0.00025479,2]
[312229644,1705696275947,-500.0,0.00025479,2]
[312229645,1705696275956,-500.0,0.00025479,2]
[312229646,1705696275965,-500.0,0.00025479,2]
[312229647,1705696275974,-1139.48,0.00025479,2]
[312229648,1705696275984,-500.0,0.00025479,2]
[312229649,1705696275993,-1318.14,0.00025479,2]
[312229650,1705696276003,-1322.95,0.00025479,2]
[312229651,1705696276012,-500.0,0.00025479,2]
[312229652,1705696276022,-500.0,0.00025479,2]
[312229653,1705696276031,-442.53,0.00025479,2]
[312229654,1705696276040,-500.0,0.00025479,2]
[312229655,1705696276050,-500.0,0.00025479,2]
[312229656,1705696276059,-500.0,0.00025479,2]
[312229657,1705696276068,-385.3,0.00025479,2]
[312229658,1705696276078,-639.88,0.00025479,2]
[312229659,1705696276087,-500.0,0.00025479,2]
[312229660,1705696276098,-341.34,0.00025479,2]
[312229661,1705696276107,-1535.97,0.00025479,2]
[312229662,1705696276117,-3452.31,0.00025479,2]
[312229663,1705696276127,-591.31,0.00025479,2]
[312229664,1705696276137,-500.0,0.00025479,2]
[312229665,1705696276147,-478.75,0.00025479,2]
[312229666,1705696276156,-4130.66,0.00025479,2]
[312229667,1705696276164,-500.0,0.00025479,2]
[312229668,1705696276173,-500.0,0.00025479,2]
[312229669,1705696276183,-1575.95,0.00025479,2]
[312229670,1705696276193,-500.0,0.00025479,2]
[312229671,1705696276203,-500.0,0.00025479,2]
[312229672,1705696276213,-500.0,0.00025479,2]
[312229673,1705696276222,-2438.69,0.00025479,2]
[312229674,1705696276232,-500.0,0.00025479,2]
[312229675,1705696276242,-499.61,0.00025479,2]
[312229676,1705696276251,-1163.77,0.00025479,2]
[312229677,1705696276260,-500.0,0.00025479,2]
[312229678,1705696276269,-753.2,0.00025479,2]
[312229679,1705696276279,-500.0,0.00025479,2]
[312229680,1705696276288,-500.0,0.00025479,2]
[312229681,1705696276297,-485.37,0.00025479,2]
[312229682,1705696276306,-500.0,0.00025479,2]
[312229683,1705696276315,-796.68,0.00025479,2]
[312229684,1705696276325,-663.44,0.00025479,2]
[312229685,1705696276334,-500.0,0.00025479,2]
[312229686,1705696276342,-500.0,0.00025479,2]
[312229687,1705696276351,-500.0,0.00025479,2]
[312229688,1705696276361,-2028.55,0.00025479,2]
[312229689,1705696276371,-615.71,0.00025479,2]
[312229690,1705696276380,-500.0,0.00025479,2]
[312229691,1705696276389,-1637.3,0.00025479,2]
[312229692,1705696276398,-500.0,0.00025479,2]
[312229693,1705696276407,-264.22,0.00025479,2]
[312229694,1705696276416,-1597.97,0.00025479,2]
[312229695,1705696276426,-551.65,0.00025479,2]
[312229696,1705696276436,-500.0,0.00025479,2]
[312229697,1705696276445,-500.0,0.00025479,2]
[312229698,1705696276454,-1095.9,0.00025479,2]
[312229699,1705696276463,-500.0,0.00025479,2]
[312229700,1705696276472,-500.0,0.00025479,2]
[312229701,1705696276482,-500.0,0.00025479,2]
[312229702,1705696276491,-500.0,0.00025479,2]
[312229703,1705696276500,-373.97,0.00025479,2]
[312229704,1705696276509,-518.27,0.00025479,2]
[312229705,1705696276518,-617.48,0.00025479,2]
[312229706,1705696276527,-2179.69,0.00025479,2]
[312229707,1705696276536,-500.0,0.00025479,2]
[312229708,1705696276546,-500.0,0.00025479,2]
[312229709,1705696276555,-165.04,0.00025479,2]
[312229710,1705696276565,-266.74,0.00025479,2]
[312229711,1705696276575,-397.5,0.00025479,2]
[312229712,1705696276584,-631.08,0.00025479,2]
[312229713,1705696276594,-500.0,0.00025479,2]
[312229714,1705696276604,-750.05,0.00025479,2]
[312229715,1705696276613,-218.6,0.00025479,2]
[312229716,1705696276622,-509.19,0.00025479,2]
[312229717,1705696276632,-2367.18,0.00025479,2]
[312229718,1705696276641,-490.43,0.00025479,2]
[312229719,1705696276650,-500.0,0.00025479,2]
[312229720,1705696276660,-500.0,0.00025479,2]
[312229721,1705696276669,-529.05,0.00025479,2]
[312229722,1705696276679,-500.0,0.00025479,2]
[312229723,1705696276688,-277.98,0.00025479,2]
[312229724,1705696276698,-819.7,0.00025479,2]
[312229725,1705696276707,-500.0,0.00025479,2]
[312229726,1705696276716,-332.94,0.00025479,2]
[312229727,1705696276726,-2201.85,0.00025479,2]
[312229728,1705696276735,-500.0,0.00025479,2]
[312229729,1705696276745,-209.4,0.00025479,2]
[312229730,1705696276754,-628.73280265,0.00025479,2]
[312229731,1705696276763,-500.0,0.00025479,2]
[312229732,1705696276773,-500.0,0.00025479,2]
[312229733,1705696276782,-1092.13,0.00025479,2]
[312229734,1705696276791,-1042.45,0.00025479,2]
[312229735,1705696276801,-2013.8,0.00025479,2]
[312229736,1705696276810,-2082.59,0.00025479,2]
[312229737,1705696276819,-245.33,0.00025479,2]
[312229738,1705696276829,-256.91,0.00025479,2]
[312229739,1705696276839,-1187.36,0.00025479,2]
[312229740,1705696276852,-500.0,0.00025479,2]
[312229741,1705696276860,-500.0,0.00025479,2]
[312229742,1705696276869,-659.04,0.00025479,2]
[312229743,1705696276879,-500.0,0.00025479,2]
[312229744,1705696276889,-1021.11,0.00025479,2]
[312229745,1705696276898,-500.0,0.00025479,2]
[312229746,1705696276908,-799.97,0.00025479,2]
[312229747,1705696276918,-317.65,0.00025479,2]
[312229748,1705696276927,-723.28,0.00025479,2]
[312229749,1705696276937,-555.66,0.00025479,2]
[312229750,1705696276947,-500.0,0.00025479,2]
[312229751,1705696276956,-155.8,0.00025479,2]
[312229752,1705696276966,-505.33,0.00025479,2]
[312229753,1705696276975,-503.7,0.00025479,2]
[312229754,1705696276984,-500.0,0.00025479,2]
[312229755,1705696276994,-1092.31,0.00025479,2]
[312229756,1705696277003,-177.97,0.00025479,2]
[312229757,1705696277013,-500.0,0.00025479,2]
[312229758,1705696277022,-766.68,0.00025479,2]
[312229759,1705696277031,-500.0,0.00025479,2]
[312229760,1705696277041,-500.0,0.00025479,2]
[312229761,1705696277050,-500.0,0.00025479,2]
[312229762,1705696277059,-621.93,0.00025479,2]
[312229763,1705696277068,-607.37,0.00025479,2]
[312229764,1705696277077,-500.0,0.00025479,2]
[312229765,1705696277086,-500.0,0.00025479,2]
[312229766,1705696277096,-500.0,0.00025479,2]
[312229767,1705696277105,-516.67,0.00025479,2]
[312229768,1705696277115,-500.0,0.00025479,2]
[312229769,1705696277125,-1034.56,0.00025479,2]
[312229770,1705696277136,-256.78,0.00025479,2]
[312229771,1705696277146,-500.0,0.00025479,2]
[312229772,1705696277157,-1651.65,0.00025479,2]
[312229773,1705696277166,-760.56,0.00025479,2]
[312229774,1705696277176,-178.36,0.00025479,2]
[312229775,1705696277186,-500.0,0.00025479,2]
[312229776,1705696277195,-500.0,0.00025479,2]
[312229777,1705696277205,-620.38,0.00025479,2]
[312229778,1705696277214,-500.0,0.00025479,2]
[312229779,1705696277223,-3607.46,0.00025479,2]
[312229780,1705696277233,-500.0,0.00025479,2]
[312229781,1705696277241,-157.65,0.00025536,2]
[312229782,1705696277250,-151.6187915,0.00025685,2]
[312229783,1705696277259,-654.0,0.00025739,2]
[312229784,1705696277268,-500.0,0.00025752,2]
[312229785,1705696277276,-500.0,0.00025752,2]
[312229786,1705696277285,-151.0,0.00025753,7]
[312229787,1705696277294,-151.0,0.00025753,7]
[312229788,1705696277303,-153.525408,0.00025753,7]
[312229789,1705696277314,-153.525408,0.00025753,7]
[312229790,1705696277324,-151.0,0.00025753,7]
[312229791,1705696277335,-151.0,0.00025753,7]
[312229792,1705696277347,-151.0,0.00025753,7]
[312229793,1705696277358,-510.96,0.00025753,2]
[312229794,1705696277367,-500.0,0.00025753,2]
[312229795,1705696277376,-500.0,0.00025753,2]
[312229796,1705696277385,-951.56,0.00025753,2]
[312229797,1705696277395,-381.93,0.00025753,2]
[312229798,1705696277405,-500.0,0.00025753,2]
[312229799,1705696277414,-500.0,0.00025753,2]
[312229800,1705696277423,-159.01,0.00025753,2]
[312229801,1705696277432,-165.08,0.00025753,2]
[312229802,1705696277442,-448.75,0.00025753,2]
[312229803,1705696277451,-500.0,0.00025753,2]
[312229804,1705696277460,-287.24,0.00025753,2]
[312229805,1705696277471,-158.26,0.00025753,2]
[312229806,1705696277482,-500.0,0.00025753,2]
[312229807,1705696277491,-500.0,0.00025753,2]
[312229808,1705696277500,-558.04,0.00025753,2]
[312229809,1705696277511,-500.0,0.00025753,2]
[312229810,1705696277521,-500.0,0.00025753,2]
[312229811,1705696277531,-500.0,0.00025753,2]
[312229812,1705696277541,-500.0,0.00025753,2]
[312229813,1705696277550,-314.11,0.00025753,2]
[312229814,1705696277559,-500.0,0.00025753,2]
[312229815,1705696277569,-625.31,0.00025753,2]
[312229816,1705696277578,-500.0,0.00025753,2]
[312229817,1705696277587,-500.0,0.00025753,2]
[312229818,1705696277597,-500.0,0.00025753,2]
[312229819,1705696277606,-500.0,0.00025753,2]
[312229820,1705696277615,-500.0,0.00025753,2]
[312229821,1705696277624,-500.0,0.00025753,2]
[312229822,1705696277633,-283.44,0.00025753,2]
[312229823,1705696277642,-294.14,0.00025753,2]
[312229824,1705696277653,-500.0,0.00025753,2]
[312229825,1705696277662,-500.0,0.00025753,2]
[312229826,1705696277672,-500.0,0.00025753,2]
[312229827,1705696277681,-380.56,0.00025753,2]
[312229828,1705696277691,-500.0,0.00025753,2]
[312229829,1705696277700,-521.4,0.00025753,2]
[312229830,1705696277709,-500.0,0.00025753,2]
[312229831,1705696277718,-394.65,0.00025753,2]
[312229832,1705696277727,-500.0,0.00025753,2]
[312229833,1705696277737,-500.0,0.00025753,2]
[312229834,1705696277747,-500.0,0.00025753,2]
[312229835,1705696277755,-500.0,0.00025753,2]
[312229836,1705696277765,-430.54,0.00025753,2]
[312229837,1705696277775,-500.0,0.00025753,2]
[312229838,1705696277784,-500.0,0.00025753,2]
[312229839,1705696277794,-500.0,0.00025753,2]
[312229840,1705696277803,-500.0,0.00025753,2]
[312229841,1705696277812,-496.61,0.00025753,2]
[312229842,1705696277821,-182.41,0.00025753,2]
[312229843,1705696277830,-500.0,0.00025753,2]
[312229844,1705696277838,-500.0,0.00025753,2]
[312229845,1705696277847,-500.0,0.00025753,2]
[312229846,1705696278003,-500.0,0.00025753,2]
[312229847,1705696278014,-519.98,0.00025753,2]
[312229848,1705696278023,-573.59,0.00025753,2]
[312229849,1705696278033,-404.22,0.00025753,2]
[312229850,1705696278044,-500.0,0.00025753,2]
[312229851,1705696278054,-377.47,0.00025753,2]
[312229852,1705696278063,-334.56,0.00025753,2]
[312229853,1705696278071,-500.0,0.00025753,2]
[312229854,1705696278080,-500.0,0.00025753,2]
[312229855,1705696278090,-500.0,0.00025753,2]
[312229856,1705696278100,-500.0,0.00025753,2]
[312229857,1705696278108,-500.0,0.00025753,2]
[312229858,1705696278117,-500.0,0.00025753,2]
[312229859,1705696278126,-563.19,0.00025753,2]
[312229860,1705696278137,-361.61,0.00025753,2]
[312229861,1705696278149,-500.0,0.00025753,2]
[312229862,1705696278160,-382.91,0.00025753,2]
[312229863,1705696278170,-235.64,0.00025753,2]
[312229864,1705696278180,-500.0,0.00025753,2]
[312229865,1705696278190,-538.66,0.00025753,2]
[312229866,1705696278202,-500.0,0.00025753,2]
[312229867,1705696278212,-500.0,0.00025753,2]
[312229868,1705696278222,-274.15,0.00025753,2]
[312229869,1705696278234,-500.0,0.00025753,2]
[312229870,1705696278245,-500.0,0.00025753,2]
[312229871,1705696278254,-153.19,0.00025753,2]
[312229872,1705696278265,-500.0,0.00025753,2]
[312229873,1705696278275,-367.53,0.00025753,2]
[312229874,1705696278286,-174.49,0.00025753,2]
[312229875,1705696278296,-150.1,0.00025753,2]
[312229876,1705696278308,-206.01,0.00025753,2]
[312229877,1705696278319,-569.08,0.00025753,2]
[312229878,1705696278329,-500.0,0.00025753,2]
[312229879,1705696278337,-500.0,0.00025753,2]
[312229880,1705696278348,-500.0,0.00025753,2]
[312229881,1705696278359,-500.0,0.00025753,2]
[312229882,1705696278368,-623.9,0.00025753,2]
[312229883,1705696278378,-500.0,0.00025753,2]
[312229884,1705696278389,-500.0,0.00025753,2]
[312229885,1705696278398,-172.69,0.00025753,2]
[312229886,1705696278407,-185.4,0.00025753,2]
[312229887,1705696278416,-500.0,0.00025753,2]
[312229888,1705696278425,-500.0,0.00025753,2]
[312229889,1705696278435,-500.0,0.00025753,2]
[312229890,1705696278444,-238.08,0.00025753,2]
[312229891,1705696278454,-201.97,0.00025753,2]
[312229892,1705696278463,-500.0,0.00025753,2]
[312229893,1705696278474,-500.0,0.00025753,2]
[312229894,1705696278483,-500.0,0.00025753,2]
[312229895,1705696278493,-500.0,0.00025753,2]
[312229896,1705696278502,-500.0,0.00025753,2]
[312229897,1705696278512,-744.86,0.00025753,2]
[312229898,1705696278522,-500.0,0.00025753,2]
[312229899,1705696278531,-500.0,0.00025753,2]
[312229900,1705696278541,-1329.39,0.00025753,2]
[312229901,1705696278550,-550.39,0.00025753,2]
[312229902,1705696278560,-500.0,0.00025753,2]
[312229903,1705696278570,-500.0,0.00025753,2]
[312229904,1705696278579,-500.0,0.00025753,2]
[312229905,1705696278588,-188.77,0.00025753,2]
[312229906,1705696278599,-500.0,0.00025753,2]
[312229907,1705696278608,-500.0,0.00025753,2]
[312229908,1705696278618,-500.0,0.00025753,2]
[312229909,1705696278627,-524.96,0.00025753,2]
[312229910,1705696278637,-500.0,0.00025753,2]
[312229911,1705696278648,-500.0,0.00025753,2]
[312229912,1705696278658,-305.01,0.00025753,2]
[312229913,1705696278668,-500.0,0.00025753,2]
[312229914,1705696278678,-798.86,0.00025753,2]
[312229915,1705696278689,-500.0,0.00025753,2]
[312229916,1705696278699,-1147.75,0.00025753,2]
[312229917,1705696278709,-725.44,0.00025753,2]
[312229918,1705696278719,-285.99,0.00025753,2]
[312229919,1705696278729,-500.0,0.00025753,2]
[312229920,1705696278738,-723.12,0.00025753,2]
[312229921,1705696278748,-500.0,0.00025753,2]
[312229922,1705696278758,-309.63,0.00025753,2]
[312229923,1705696278767,-385.37,0.00025753,2]
[312229924,1705696278777,-873.87,0.00025753,2]
[312229925,1705696278787,-500.0,0.00025753,2]
[312229926,1705696278797,-509.37,0.00025753,2]
[312229927,1705696278808,-150.56,0.00025753,2]
[312229928,1705696278818,-603.07328801,0.00025753,2]
[312229929,1705696278827,-500.0,0.00025753,2]
[312229930,1705696278837,-1419.83,0.00025753,2]
[312229931,1705696278846,-927.45,0.00025753,2]
[312229932,1705696278858,-1148.85,0.00025753,2]
[312229933,1705696278869,-232.06,0.00025753,2]
[312229934,1705696278878,-621.77,0.00025753,2]
[312229935,1705696278888,-910.74,0.00025753,2]
[312229936,1705696278899,-500.0,0.00025753,2]
[312229937,1705696278909,-526.25,0.00025753,2]
[312229938,1705696278918,-1454.65,0.00025753,2]
[312229939,1705696278928,-631.37,0.00025753,2]
[312229940,1705696278937,-173.88,0.00025753,2]
[312229941,1705696278947,-405.47,0.00025753,2]
[312229942,1705696278957,-1401.96,0.00025753,2]
[312229943,1705696278965,-1959.51,0.00025753,2]
[312229944,1705696278974,-500.0,0.00025753,2]
[312229945,1705696278983,-500.0,0.00025753,2]
[312229946,1705696278993,-500.0,0.00025753,2]
[312229947,1705696279002,-2285.19,0.00025753,2]
[312229948,1705696279012,-500.0,0.00025753,2]
[312229949,1705696279021,-500.0,0.00025753,2]
[312229950,1705696279031,-1198.85,0.00025753,2]
[312229951,1705696279040,-532.41,0.00025753,2]
[312229952,1705696279050,-500.0,0.00025753,2]
[312229953,1705696279061,-500.0,0.00025753,2]
[312229954,1705696279070,-667.98,0.00025753,2]
[312229955,1705696279079,-500.0,0.00025753,2]
[312229956,1705696279089,-500.0,0.00025753,2]
[312229957,1705696279101,-500.0,0.00025753,2]
[312229958,1705696279111,-1258.01,0.00025753,2]
[312229959,1705696279121,-500.0,0.00025753,2]
[312229960,1705696279131,-500.0,0.00025753,2]
[312229961,1705696279143,-500.0,0.00025753,2]
[312229962,1705696279154,-150.07,0.00025753,2]
[312229963,1705696279164,-1139.48,0.00025753,2]
[312229964,1705696279174,-500.0,0.00025753,2]
[312229965,1705696279184,-1318.14,0.00025753,2]
[312229966,1705696279194,-1322.95,0.00025753,2]
[312229967,1705696279204,-500.0,0.00025753,2]
[312229968,1705696279213,-266.77,0.00025753,2]
[312229969,1705696279223,-500.0,0.00025753,2]
[312229970,1705696279233,-285.09,0.00025753,2]
[312229971,1705696279243,-500.0,0.00025753,2]
[312229972,1705696279252,-500.0,0.00025753,2]
[312229973,1705696279263,-1535.97,0.00025753,2]
[312229974,1705696279273,-3452.31,0.00025753,2]
[312229975,1705696279283,-500.0,0.00025753,2]
[312229976,1705696279293,-4130.66,0.00025753,2]
[312229977,1705696279302,-279.41,0.00025753,2]
[312229978,1705696279312,-500.0,0.00025753,2]
[312229979,1705696279322,-1575.95,0.00025753,2]
[312229980,1705696279332,-500.0,0.00025753,2]
[312229981,1705696279341,-500.0,0.00025753,2]
[312229982,1705696279353,-500.0,0.00025753,2]
[312229983,1705696279362,-2438.69,0.00025753,2]
[312229984,1705696279371,-320.91,0.00025753,2]
[312229985,1705696279380,-1163.77,0.00025753,2]
[312229986,1705696279389,-299.01,0.00025753,2]
[312229987,1705696279398,-753.2,0.00025753,2]
[312229988,1705696279408,-500.0,0.00025753,2]
[312229989,1705696279418,-500.0,0.00025753,2]
[312229990,1705696279427,-211.09,0.00025753,2]
[312229991,1705696279437,-796.68,0.00025753,2]
[312229992,1705696279446,-387.31,0.00025753,2]
[312229993,1705696279455,-663.44,0.00025753,2]
[312229994,1705696279465,-500.0,0.00025753,2]
[312229995,1705696279474,-500.0,0.00025753,2]
[312229996,1705696279484,-2028.55,0.00025753,2]
[312229997,1705696279494,-500.0,0.00025753,2]
[312229998,1705696279503,-1637.3,0.00025753,2]
[312229999,1705696279513,-500.0,0.00025753,2]
[312230000,1705696279522,-1597.97,0.00025753,2]
[312230001,1705696279531,-551.65,0.00025753,2]
[312230002,1705696279540,-500.0,0.00025753,2]
[312230003,1705696279549,-500.0,0.00025753,2]
[312230004,1705696279559,-1095.9,0.00025753,2]
[312230005,1705696279569,-616.6,0.00025753,2]
[312230006,1705696279578,-500.0,0.00025753,2]
[312230007,1705696279587,-500.0,0.00025753,2]
[312230008,1705696279597,-617.48,0.00025753,2]
[312230009,1705696279609,-2179.69,0.00025753,2]
[312230010,1705696279619,-500.0,0.00025753,2]
[312230011,1705696279628,-500.0,0.00025753,2]
[312230012,1705696279638,-500.0,0.00025753,2]
[312230013,1705696279648,-750.05,0.00025753,2]
[312230014,1705696279658,-509.19,0.00025753,2]